fUST/lending_fUST_20240301
["ID","MTS","AMOUNT","RATE_DAILY","PERIOD"]
[315924709,1709285433824,-500.0,0.00020975,2]
[315924710,1709285433833,-500.0,0.00020976,2]
[315924711,1709285433842,-494.53,0.00020976,2]
[315924712,1709285433851,-462.85808609,0.00020976,2]
[315924713,1709285433860,-500.0,0.00020976,2]
[315924714,1709285433869,-503.72718742,0.00020976,2]
[315924715,1709285433878,-500.0,0.00020976,2]
[315924716,1709285433888,-8255.80893917,0.00020977,2]
[315924717,1709285433897,-153.85834619,0.00020995,2]
[315924718,1709285433906,-500.0,0.00020996,2]
[315924719,1709285433915,-500.0,0.00020997,2]
[315924720,1709285433924,-470.65,0.00020997,2]
[315924721,1709285433933,-711.48,0.00020997,2]
[315924722,1709285433942,-500.0,0.00020997,2]
[315924723,1709285433952,-500.0,0.00020997,2]
[315924724,1709285433962,-500.0,0.00020997,2]
[315924725,1709285433971,-500.0,0.00020997,2]
[315924726,1709285433980,-500.0,0.00020997,2]
[315924727,1709285433989,-500.0,0.00020997,2]
[315924728,1709285433999,-500.0,0.00020997,2]
[315924729,1709285434008,-500.0,0.00020997,2]
[315924730,1709285434017,-345.68,0.00020997,2]
[315924731,1709285434027,-500.0,0.00020997,2]
[315924732,1709285434036,-500.0,0.00020997,2]
[315924733,1709285434046,-500.0,0.00020997,2]
[315924734,1709285434055,-500.0,0.00020997,2]
[315924735,1709285434064,-500.0,0.00020997,2]
[315924736,1709285434075,-637.1731252,0.00020997,2]
[315924737,1709285434085,-467.61262879,0.00020997,2]
[315924738,1709285434094,-500.0,0.00020997,2]
[315924739,1709285434103,-470.7,0.00020997,2]
[315924740,1709285434113,-519.93,0.00020997,2]
[315924741,1709285434123,-519.93,0.00020997,2]
[315924742,1709285434132,-500.0,0.00020997,2]
[315924743,1709285434141,-500.0,0.00020997,2]
[315924744,1709285434150,-500.0,0.00020997,2]
[315924745,1709285434160,-500.0,0.00020997,2]
[315924746,1709285434170,-955.34860829,0.00020998,2]
[315924747,1709285434179,-187.50879453,0.00020998,2]
[315924748,1709285434189,-280.3885501,0.00020998,2]
[315924749,1709285434198,-155.01705188,0.00020998,2]
[315924750,1709285434208,-363.68652128,0.00020998,2]
[315924751,1709285434217,-4815.35960486,0.00020998,2]
[315924752,1709285434227,-279.31999204,0.00020998,2]
[315924753,1709285434236,-155.44939622,0.00020998,2]
[315924754,1709285434246,-461.31959607,0.00020998,2]
[315924755,1709285434255,-243.01215554,0.00020998,2]
[315924756,1709285434265,-10620.62560588,0.00020998,2]
[315924757,1709285434275,-285.52119037,0.00020998,2]
[315924758,1709285434284,-50474.93194577,0.00020998,2]
[315924759,1709285434294,-248.65468102,0.00020998,2]
[315924760,1709285434304,-151.0,0.00020998,2]
[315924761,1709285434313,-500.0,0.00020998,2]
[315924762,1709285434323,-531.397522,0.00020998,2]
[315924763,1709285434333,-531.397522,0.00020998,2]
[315924764,1709285434342,-531.397522,0.00020998,2]
[315924765,1709285434352,-531.397522,0.00020998,2]
[315924766,1709285434361,-151.0,0.00020998,2]
[315924767,1709285434371,-151.0,0.00020998,2]
[315924768,1709285434380,-711.48,0.00020998,2]
[315924769,1709285434390,-500.0,0.00020998,2]
[315924770,1709285434399,-500.0,0.00020998,2]
[315924771,1709285434409,-500.0,0.00020998,2]
[315924772,1709285434418,-263.21964131,0.00020998,7]
[315924773,1709285434428,-500.0,0.00020998,2]
[315924774,1709285434437,-220.816973,0.00020998,2]
[315924775,1709285434446,-156.19549016,0.00020998,2]
[315924776,1709285434455,-151.0,0.00020998,2]
[315924777,1709285434465,-151.0,0.00020998,2]
[315924778,1709285434474,-519.93,0.00020998,2]
[315924779,1709285434484,-500.0,0.00020998,2]
[315924780,1709285434497,-151.0,0.00020999,2]
[315924781,1709285434506,-500.0,0.00020999,2]
[315924782,1709285434515,-500.0,0.00020999,2]
[315924783,1709285434524,-500.0,0.00020999,2]
[315924784,1709285434534,-500.0,0.00020999,2]
[315924785,1709285434543,-500.0,0.00020999,2]
[315924786,1709285434552,-500.0,0.00020999,2]
[315924787,1709285434561,-500.0,0.00020999,2]
[315924788,1709285434573,-500.0,0.00020999,2]
[315924789,1709285434582,-500.0,0.00020999,2]
[315924790,1709285434592,-500.0,0.00020999,2]
[315924791,1709285434601,-446.54,0.00020999,2]
[315924792,1709285434610,-531.397522,0.00020999,2]
[315924793,1709285434620,-531.397522,0.00020999,2]
[315924794,1709285434629,-151.0,0.00020999,2]
[315924795,1709285434638,-711.48,0.00020999,2]
[315924796,1709285434647,-711.48,0.00020999,2]
[315924797,1709285434657,-711.48,0.00020999,2]
[315924798,1709285434666,-500.0,0.00020999,2]
[315924799,1709285434675,-711.48,0.00020999,2]
[315924800,1709285434685,-500.0,0.00020999,2]
[315924801,1709285434694,-500.0,0.00020999,2]
[315924802,1709285434703,-711.48,0.00020999,2]
[315924803,1709285434712,-500.0,0.00020999,2]
[315924804,1709285434721,-711.48,0.00020999,2]
[315924805,1709285434730,-711.48,0.00020999,2]
[315924806,1709285434740,-500.0,0.00020999,2]
[315924807,1709285434749,-310.86453099,0.00020999,2]
[315924808,1709285434759,-711.48,0.00020999,2]
[315924809,1709285434768,-711.48,0.00020999,2]
[315924810,1709285434777,-711.48,0.00020999,2]
[315924811,1709285434787,-711.48,0.00020999,2]
[315924812,1709285434796,-711.48,0.00020999,2]
[315924813,1709285434805,-711.48,0.00020999,2]
[315924814,1709285434815,-711.48,0.00020999,2]
[315924815,1709285434826,-711.48,0.00020999,2]
[315924816,1709285434836,-711.48,0.00020999,2]
[315924817,1709285434845,-711.55842119,0.00020999,2]
[315924818,1709285434855,-500.0,0.00020999,2]
[315924819,1709285434865,-500.0,0.00020999,2]
[315924820,1709285434874,-244.32796084,0.00020999,2]
[315924821,1709285434883,-500.0,0.00020999,2]
[315924822,1709285434893,-500.0,0.00020999,2]
[315924823,1709285434902,-500.0,0.00020999,2]
[315924824,1709285434911,-254.56316616,0.00020999,2]
[315924825,1709285434920,-504.24,0.00020999,2]
[315924826,1709285434930,-151.0,0.00020999,2]
[315924827,1709285434939,-519.93,0.00020999,2]
[315924828,1709285434948,-519.93,0.00020999,2]
[315924829,1709285434958,-519.93,0.00020999,2]
[315924830,1709285434967,-519.93,0.00020999,2]
[315924831,1709285434976,-519.93,0.00020999,2]
[315924832,1709285434986,-519.93,0.00020999,2]
[315924833,1709285434995,-519.93,0.00020999,2]
[315924834,1709285435005,-519.93,0.00020999,2]
[315924835,1709285435014,-519.93,0.00020999,2]
[315924836,1709285435023,-519.93,0.00020999,2]
[315924837,1709285435033,-519.93,0.00020999,2]
[315924838,1709285435043,-519.93,0.00020999,2]
[315924839,1709285435053,-519.93,0.00020999,2]
[315924840,1709285435062,-519.93,0.00020999,2]
[315924841,1709285435073,-519.93,0.00020999,2]
[315924842,1709285435083,-519.93,0.00020999,2]
[315924843,1709285435093,-519.93,0.00020999,2]
[315924844,1709285435103,-519.93,0.00020999,2]
[315924845,1709285435112,-520.13213166,0.00020999,2]
[315924846,1709285435121,-500.0,0.00020999,2]
[315924847,1709285435131,-500.0,0.00020999,2]
[315924848,1709285435141,-500.0,0.00020999,2]
[315924849,1709285435150,-500.0,0.00020999,2]
[315924850,1709285435160,-500.0,0.00020999,2]
[315924851,1709285435169,-500.0,0.00020999,2]
[315924852,1709285435179,-500.0,0.00020999,2]
[315924853,1709285435188,-500.0,0.00020999,2]
[315924854,1709285435197,-500.0,0.00020999,2]
[315924855,1709285435207,-500.0,0.00020999,2]
[315924856,1709285435217,-500.0,0.00020999,2]
[315924857,1709285435226,-605.39012028,0.00020999,2]
[315924858,1709285435235,-476.44066358,0.00020999,2]
[315924859,1709285435244,-500.0,0.00020999,2]
[315924860,1709285435254,-262.91209676,0.00020999,2]
[315924861,1709285435263,-500.0,0.00020999,2]
[315924862,1709285435273,-500.0,0.00020999,2]
[315924863,1709285435283,-226.2374146,0.00020999,2]
[315924864,1709285435293,-500.0,0.00020999,2]
[315924865,1709285435303,-500.0,0.00020999,2]
[315924866,1709285435312,-500.0,0.00020999,2]
[315924867,1709285435322,-500.0,0.00020999,2]
[315924868,1709285435331,-500.0,0.00020999,2]
[315924869,1709285435340,-500.0,0.00020999,2]
[315924870,1709285435435,-500.0,0.00020999,2]
[315924871,1709285435445,-500.0,0.00020999,2]
[315924872,1709285435455,-500.0,0.00020999,2]
[315924873,1709285435464,-500.0,0.00020999,2]
[315924874,1709285435476,-500.0,0.00020999,2]
[315924875,1709285435487,-500.0,0.00020999,2]
[315924876,1709285435497,-200.0,0.00020999,2]
[315924877,1709285435506,-871485.13344754,0.00021,2]
[315924913,1709285440904,-636.02990378,0.00019588,3]
[315924915,1709285440916,-227.98009622,0.00019588,3]
[315924917,1709285440926,-8211.64546242,0.00021,2]
[315924919,1709285440937,-17849.98203116,0.00021,2]
[315924943,1709285444498,-582.78675062,0.00020547,2]
[315924944,1709285444508,-205.16048638,0.00021,2]
[315925221,1709285448120,-500.6417721,0.00020547,2]
[315925223,1709285448130,-500.88979037,0.00020547,2]
[315925225,1709285448139,-77.54568475,0.00020547,2]
[315925228,1709285448150,-422.45431525,0.00020547,2]
[315925230,1709285448159,-720.01,0.0002099,3]
[315925232,1709285448168,-274.45998702,0.00020999,2]
[315925234,1709285448177,-311.67599768,0.00020999,2]
[315925235,1709285448186,-178.74438202,0.00020999,2]
[315925239,1709285448195,-2136.1,0.00020999,2]
[315925242,1709285448204,-425.03481229,0.00020999,2]
[315925245,1709285448214,-894.02051074,0.00021,2]
[315925247,1709285448225,-3428.9727547,0.00021,2]
[315925252,1709285448264,-18671.71900329,0.00021,2]
[315925683,1709285453350,100.0,0.0001791,2]
[315925868,1709285637500,25000.0,0.000177,2]
[315925869,1709285637536,9027.73275369,0.000177,2]
[315925890,1709285847493,12567.0572784,0.00017339,2]
[315925891,1709285869412,103665.81546055,0.000177,2]
[315925892,1709285887460,103665.81546055,0.000177,2]
[315925893,1709285921747,2496.09032157,0.000177,2]
[315925900,1709286173933,237.980335,0.00017604,2]
[315925901,1709286201346,12535.43892254,0.0002,4]
[315925902,1709286483393,11939.84470244,0.0002,4]
[315925904,1709286600258,106727.0,0.0003,120]
[315926153,1709286634630,-1079.68830364,0.00018215,2]
[315926155,1709286634639,-1381.78358486,0.00018216,2]
[315926159,1709286634670,-754.31641514,0.00018216,2]
[315926161,1709286634679,-354.19567691,0.00018217,2]
[315926163,1709286634689,-587.4710624,0.00018759,2]
[315926165,1709286634698,-431.87743136,0.000189,2]
[315926167,1709286634707,-177.43482931,0.00019078,2]
[315926169,1709286634717,-4153.633332,0.00019079,2]
[315926171,1709286634728,-13013.1526848,0.00019079,2]
[315926173,1709286634737,-153.0,0.00019478,2]
[315926175,1709286634747,-153.0,0.000195,2]
[315926177,1709286634756,-153.0,0.000195,2]
[315926179,1709286634765,-273.60849089,0.000196,2]
[315926181,1709286634774,-153.0,0.000196,2]
[315926183,1709286634784,-155.24476825,0.0002,2]
[315926185,1709286634793,-153.0,0.0002,2]
[315926187,1709286634802,-595.5942201,0.0002,4]
[315926189,1709286634813,-153.0,0.0002,2]
[315926191,1709286634822,-690.93016944,0.00020189,5]
[315926193,1709286634832,-282.85163682,0.00020189,5]
[315926195,1709286634843,-153.0,0.000202,2]
[315926197,1709286634852,-153.0,0.00020378,2]
[315926199,1709286634861,-190.38238204,0.00020447,2]
[315926201,1709286634871,-289.36,0.00020537,3]
[315926203,1709286634881,-551.78,0.00020537,3]
[315926205,1709286634890,-459.82,0.00020537,3]
[315926207,1709286634899,-501.58146036,0.00020546,2]
[315926209,1709286634908,-500.0,0.00020547,2]
[315926211,1709286634919,-500.0,0.00020547,2]
[315926213,1709286634928,-500.0,0.00020547,2]
[315926215,1709286634937,-500.0,0.00020547,2]
[315926217,1709286634946,-451.7253466,0.00020547,2]
[315926230,1709286635069,-501.61566578,0.00020547,2]
[315926232,1709286635080,-331.87495185,0.00020547,2]
[315926234,1709286635091,-500.0,0.00020547,2]
[315926236,1709286635103,-500.0,0.00020547,2]
[315926238,1709286635113,-500.0,0.00020547,2]
[315926240,1709286635123,-500.0,0.00020547,2]
[315926242,1709286635132,-279.63692906,0.00020547,2]
[315926244,1709286635142,-400.32969916,0.00020547,2]
[315926246,1709286635156,-500.0,0.00020547,2]
[315926248,1709286635167,-500.0,0.00020547,2]
[315926251,1709286635178,-500.0,0.00020547,2]
[315926253,1709286635189,-500.0,0.00020547,2]
[315926255,1709286635198,-500.0,0.00020547,2]
[315926257,1709286635208,-500.0,0.00020547,2]
[315926259,1709286635218,-305.93294582,0.00020547,2]
[315926261,1709286635228,-234.79636358,0.00020547,2]
[315926263,1709286635239,-500.0,0.00020547,2]
[315926265,1709286635249,-500.0,0.00020547,2]
[315926266,1709286635259,-501.17523716,0.00020547,2]
[315926269,1709286635269,-522.90165729,0.00020547,2]
[315926270,1709286635279,-500.0,0.00020547,2]
[315926273,1709286635289,-500.0,0.00020547,2]
[315926275,1709286635299,-500.0,0.00020547,2]
[315926277,1709286635309,-500.0,0.00020547,2]
[315926278,1709286635318,-500.0,0.00020547,2]
[315926280,1709286635328,-500.0,0.00020547,2]
[315926282,1709286635337,-500.0,0.00020547,2]
[315926284,1709286635346,-500.0,0.00020547,2]
[315926287,1709286635357,-500.38547198,0.00020547,2]
[315926288,1709286635366,-500.0,0.00020547,2]
[315926290,1709286635376,-500.0,0.00020547,2]
[315926292,1709286635385,-500.0,0.00020547,2]
[315926294,1709286635395,-500.0,0.00020547,2]
[315926296,1709286635405,-500.0,0.00020547,2]
[315926298,1709286635414,-500.56773354,0.00020547,2]
[315926300,1709286635423,-542.40879376,0.00020547,2]
[315926303,1709286635434,-500.11407965,0.00020547,2]
[315926305,1709286635444,-500.45340877,0.00020547,2]
[315926306,1709286635453,-515.72568732,0.00020547,2]
[315926308,1709286635462,-500.27104441,0.00020547,2]
[315926310,1709286635471,-500.18509357,0.00020547,2]
[315926312,1709286635481,-618.57571928,0.00020547,2]
[315926314,1709286635491,-500.0,0.00020547,2]
[315926317,1709286635501,-500.0,0.00020547,2]
[315926318,1709286635510,-500.0,0.00020547,2]
[315926321,1709286635519,-500.0,0.00020547,2]
[315926322,1709286635529,-501.50824333,0.00020547,2]
[315926324,1709286635538,-500.0,0.00020547,2]
[315926326,1709286635547,-500.0,0.00020547,2]
[315926329,1709286635559,-500.0,0.00020547,2]
[315926331,1709286635569,-500.0,0.00020547,2]
[315926332,1709286635578,-175.28258982,0.00020547,2]
[315926335,1709286635588,-500.0,0.00020547,2]
[315926336,1709286635598,-501.38007715,0.00020547,2]
[315926339,1709286635607,-241.49757873,0.00020547,2]
[315926341,1709286635617,-500.0,0.00020547,2]
[315926343,1709286635627,-500.0,0.00020547,2]
[315926345,1709286635637,-500.0,0.00020547,2]
[315926347,1709286635646,-500.0,0.00020547,2]
[315926348,1709286635655,-500.0,0.00020547,2]
[315926351,1709286635665,-500.0,0.00020547,2]
[315926353,1709286635674,-500.0,0.00020547,2]
[315926355,1709286635684,-500.73619319,0.00020547,2]
[315926357,1709286635694,-585.25238716,0.00020547,2]
[315926359,1709286635703,-500.65074809,0.00020547,2]
[315926361,1709286635713,-500.0,0.00020547,2]
[315926363,1709286635722,-629.7385936,0.00020547,2]
[315926364,1709286635731,-500.4947331,0.00020547,2]
[315926366,1709286635740,-500.0,0.00020547,2]
[315926369,1709286635750,-500.0,0.00020547,2]
[315926370,1709286635759,-246.96258692,0.00020547,2]
[315926373,1709286635769,-500.0,0.00020547,2]
[315926375,1709286635779,-410.06339756,0.00020547,2]
[315926376,1709286635789,-500.54285005,0.00020547,2]
[315926378,1709286635799,-501.12706915,0.00020547,2]
[315926381,1709286635809,-500.0,0.00020547,2]
[315926383,1709286635819,-500.0,0.00020547,2]
[315926384,1709286635830,-500.0,0.00020547,2]
[315926386,1709286635841,-500.0,0.00020547,2]
[315926388,1709286635850,-501.9416185,0.00020547,2]
[315926390,1709286635860,-500.0,0.00020547,2]
[315926392,1709286635869,-500.0,0.00020547,2]
[315926394,1709286635879,-500.0,0.00020547,2]
[315926396,1709286635889,-500.0,0.00020547,2]
[315926398,1709286635898,-189.07620941,0.00020547,2]
[315926400,1709286635907,-508.52732024,0.00020547,2]
[315926402,1709286635917,-500.0,0.00020547,2]
[315926404,1709286635926,-500.41419199,0.00020547,2]
[315926406,1709286635935,-501.3868524,0.00020547,2]
[315926408,1709286635944,-500.0,0.00020547,2]
[315926410,1709286635953,-500.0,0.00020547,2]
[315926412,1709286635963,-500.0,0.00020547,2]
[315926414,1709286635972,-500.0,0.00020547,2]
[315926416,1709286635981,-500.0,0.00020547,2]
[315926418,1709286635991,-500.0,0.00020547,2]
[315926420,1709286636001,-500.0,0.00020547,2]
[315926422,1709286636011,-500.0,0.00020547,2]
[315926424,1709286636020,-568.85457968,0.00020547,2]
[315926426,1709286636029,-500.0,0.00020547,2]
[315926428,1709286636039,-500.0,0.00020547,2]
[315926430,1709286636048,-307.21200372,0.00020547,2]
[315926432,1709286636059,-500.0,0.00020547,2]
[315926434,1709286636068,-500.0,0.00020547,2]
[315926436,1709286636078,-500.0,0.00020547,2]
[315926438,1709286636088,-500.0,0.00020547,2]
[315926440,1709286636098,-592.74414007,0.00020547,2]
[315926442,1709286636107,-500.0,0.00020547,2]
[315926444,1709286636116,-500.0,0.00020547,2]
[315926446,1709286636125,-585.12261618,0.00020547,2]
[315926448,1709286636134,-500.0,0.00020547,2]
[315926449,1709286636144,-500.0,0.00020547,2]
[315926451,1709286636153,-500.0,0.00020547,2]
[315926453,1709286636163,-500.0,0.00020547,2]
[315926455,1709286636173,-500.0,0.00020547,2]
[315926457,1709286636183,-500.0,0.00020547,2]
[315926459,1709286636193,-500.0,0.00020547,2]
[315926461,1709286636203,-500.0,0.00020547,2]
[315926464,1709286636213,-500.64799702,0.00020547,2]
[315926466,1709286636223,-500.0,0.00020547,2]
[315926467,1709286636233,-501.31262234,0.00020547,2]
[315926469,1709286636243,-500.0,0.00020547,2]
[315926471,1709286636252,-501.5394086,0.00020547,2]
[315926473,1709286636261,-500.0,0.00020547,2]
[315926475,1709286636271,-500.0,0.00020547,2]
[315926477,1709286636280,-500.0,0.00020547,2]
[315926479,1709286636290,-257.26883127,0.00020547,2]
[315926481,1709286636300,-500.97361617,0.00020547,2]
[315926483,1709286636310,-500.0,0.00020547,2]
[315926485,1709286636320,-500.0,0.00020547,2]
[315926487,1709286636329,-504.70606346,0.00020547,2]
[315926489,1709286636339,-504.04872754,0.00020547,2]
[315926491,1709286636350,-500.0,0.00020547,2]
[315926493,1709286636359,-500.0,0.00020547,2]
[315926496,1709286636369,-500.0,0.00020547,2]
[315926497,1709286636379,-500.0,0.00020547,2]
[315926500,1709286636390,-500.0,0.00020547,2]
[315926502,1709286636400,-500.0,0.00020547,2]
[315926503,1709286636410,-500.0,0.00020547,2]
[315926505,1709286636420,-500.0,0.00020547,2]
[315926508,1709286636430,-500.0,0.00020547,2]
[315926509,1709286636440,-501.04679274,0.00020547,2]
[315926512,1709286636450,-600.0,0.00020547,2]
[315926513,1709286636459,-501.78357204,0.00020547,2]
[315926516,1709286636469,-500.0,0.00020547,2]
[315926518,1709286636479,-500.0,0.00020547,2]
[315926520,1709286636494,-500.0,0.00020547,2]
[315926523,1709286636510,-500.0,0.00020547,2]
[315926525,1709286636519,-500.0,0.00020547,2]
[315926527,1709286636529,-323.07,0.00020547,2]
[315926529,1709286636540,-500.0,0.00020547,2]
[315926531,1709286636550,-501.21870852,0.00020547,2]
[315926533,1709286636560,-500.40287248,0.00020547,2]
[315926535,1709286636571,-500.97917017,0.00020547,2]
[315926537,1709286636581,-500.0,0.00020547,2]
[315926539,1709286636592,-500.0,0.00020547,2]
[315926541,1709286636602,-500.0,0.00020547,2]
[315926543,1709286636612,-500.0,0.00020547,2]
[315926545,1709286636623,-500.0,0.00020547,2]
[315926547,1709286636633,-500.0,0.00020547,2]
[315926549,1709286636642,-500.0,0.00020547,2]
[315926551,1709286636651,-500.0,0.00020547,2]
[315926553,1709286636661,-500.0,0.00020547,2]
[315926555,1709286636671,-500.0,0.00020547,2]
[315926557,1709286636680,-500.0,0.00020547,2]
[315926559,1709286636690,-500.0,0.00020547,2]
[315926561,1709286636699,-500.0,0.00020547,2]
[315926563,1709286636709,-500.0,0.00020547,2]
[315926565,1709286636719,-601.31095344,0.00020547,2]
[315926567,1709286636729,-500.0,0.00020547,2]
[315926568,1709286636739,-500.0,0.00020547,2]
[315926569,1709286636748,-347.10135933,0.00020547,2]
[315926570,1709286636758,-500.0,0.00020547,2]
[315926571,1709286636767,-500.0,0.00020547,2]
[315926572,1709286636777,-500.0,0.00020547,2]
[315926573,1709286636786,-500.0,0.00020547,2]
[315926574,1709286636796,-500.0,0.00020547,2]
[315926575,1709286636805,-500.0,0.00020547,2]
[315926576,1709286636816,-500.0,0.00020547,2]
[315926577,1709286636826,-500.0,0.00020547,2]
[315926578,1709286636838,-500.0,0.00020547,2]
[315926579,1709286636848,-500.0,0.00020547,2]
[315926580,1709286636858,-500.0,0.00020547,2]
[315926581,1709286636868,-500.0,0.00020547,2]
[315926582,1709286636879,-400.62,0.00020547,2]
[315926583,1709286636889,-420.23584405,0.00020547,2]
[315926585,1709286636899,-500.0,0.00020547,2]
[315926586,1709286636909,-500.55431438,0.00020547,2]
[315926587,1709286636919,-500.0,0.00020547,2]
[315926589,1709286636929,-500.0,0.00020547,2]
[315926590,1709286636938,-500.0,0.00020547,2]
[315926592,1709286636948,-500.0,0.00020547,2]
[315926594,1709286636958,-500.0,0.00020547,2]
[315926596,1709286636967,-500.0,0.00020547,2]
[315926598,1709286636977,-501.06629389,0.00020547,2]
[315926600,1709286636986,-500.0,0.00020547,2]
[315926602,1709286636996,-196.5699657,0.00020547,2]
[315926605,1709286637008,-500.0,0.00020547,2]
[315926607,1709286637017,-500.0,0.00020547,2]
[315926609,1709286637028,-500.0,0.00020547,2]
[315926610,1709286637037,-500.0,0.00020547,2]
[315926612,1709286637046,-500.0,0.00020547,2]
[315926615,1709286637056,-176.07242424,0.00020547,2]
[315926616,1709286637066,-500.91323535,0.00020547,2]
[315926619,1709286637077,-500.57589758,0.00020547,2]
[315926621,1709286637087,-500.0,0.00020547,2]
[315926623,1709286637097,-500.99049779,0.00020547,2]
[315926625,1709286637106,-701.19,0.00020547,2]
[315926626,1709286637115,-701.19,0.00020547,2]
[315926628,1709286637124,-701.19,0.00020547,2]
[315926630,1709286637134,-701.19,0.00020547,2]
[315926633,1709286637144,-500.0,0.00020547,2]
[315926635,1709286637153,-500.0,0.00020547,2]
[315926637,1709286637163,-500.0,0.00020547,2]
[315926639,1709286637173,-500.0,0.00020547,2]
[315926641,1709286637182,-500.0,0.00020547,2]
[315926643,1709286637193,-500.0,0.00020547,2]
[315926645,1709286637202,-503.00187017,0.00020547,2]
[315926647,1709286637213,-500.0,0.00020547,2]
[315926649,1709286637222,-583.37,0.00020547,2]
[315926651,1709286637231,-583.37,0.00020547,2]
[315926653,1709286637240,-583.37,0.00020547,2]
[315926655,1709286637250,-500.0,0.00020547,2]
[315926657,1709286637259,-501.57749188,0.00020547,2]
[315926659,1709286637269,-500.0,0.00020547,2]
[315926661,1709286637278,-500.0,0.00020547,2]
[315926663,1709286637287,-275.64,0.00020547,2]
[315926665,1709286637296,-500.0,0.00020547,2]
[315926667,1709286637305,-500.0,0.00020547,2]
[315926668,1709286637316,-500.0,0.00020547,2]
[315926670,1709286637325,-317.96,0.00020547,2]
[315926673,1709286637335,-500.0,0.00020547,2]
[315926675,1709286637345,-633.72,0.00020547,2]
[315926677,1709286637354,-500.0,0.00020547,2]
[315926679,1709286637363,-445.86,0.00020547,2]
[315926681,1709286637372,-500.0,0.00020547,2]
[315926683,1709286637382,-500.0,0.00020547,2]
[315926685,1709286637391,-500.0,0.00020547,2]
[315926687,1709286637400,-500.0,0.00020547,2]
[315926689,1709286637409,-500.0,0.00020547,2]
[315926691,1709286637418,-500.0,0.00020547,2]
[315926692,1709286637427,-514.49492799,0.00020547,2]
[315926695,1709286637437,-500.0,0.00020547,2]
[315926697,1709286637446,-500.0,0.00020547,2]
[315926698,1709286637455,-500.0,0.00020547,2]
[315926700,1709286637465,-632.43,0.00020547,2]
[315926703,1709286637474,-500.0,0.00020547,2]
[315926704,1709286637484,-500.0,0.00020547,2]
[315926706,1709286637493,-500.0,0.00020547,2]
[315926719,1709286637600,-500.0,0.00020547,2]
[315926721,1709286637610,-500.0,0.00020547,2]
[315926723,1709286637619,-500.0,0.00020547,2]
[315926725,1709286637628,-501.97582698,0.00020547,2]
[315926727,1709286637638,-500.70113265,0.00020547,2]
[315926729,1709286637647,-500.0,0.00020547,2]
[315926731,1709286637657,-500.0,0.00020547,2]
[315926733,1709286637666,-389.57,0.00020547,2]
[315926735,1709286637675,-500.0,0.00020547,2]
[315926737,1709286637684,-500.0,0.00020547,2]
[315926739,1709286637694,-552.16895642,0.00020547,2]
[315926741,1709286637703,-500.0,0.00020547,2]
[315926743,1709286637713,-500.0,0.00020547,2]
[315926745,1709286637722,-500.0,0.00020547,2]
[315926747,1709286637731,-500.0,0.00020547,2]
[315926749,1709286637740,-500.0,0.00020547,2]
[315926751,1709286637749,-500.0,0.00020547,2]
[315926753,1709286637758,-500.0,0.00020547,2]
[315926754,1709286637767,-500.0,0.00020547,2]
[315926756,1709286637776,-500.0,0.00020547,2]
[315926758,1709286637786,-500.0,0.00020547,2]